[Event "VII GM Barcelona CC 2022"]
[Site "Barcelona"]
[Date "2022.05.11"]
[Round "2.2"]
[White "Sosa, Tomas"]
[Black "Gonzalez Perez, Arian"]
[Result "1/2-1/2"]
[ECO "B23"]
[WhiteElo "2552"]
[BlackElo "2415"]
[Annotator "TA"]
[PlyCount "100"]
[EventDate "2022.05.10"]
[EventType "tourn"]
[EventCountry "ESP"]
[SourceTitle "playchess.com"]
[Source "ChessBase"]
[SourceQuality "1"]
[TimeControl "5400+30"]

{[%evp 9,100,11,20,26,29,19,75,72,67,78,85,52,81,80,75,72,114,0,41,0,0,20,228,122,227,55,68,68,106,99,87,13,2,-304,-294,-297,-301,-428,-431,-433,-431,-407,-423,-403,-266,-264,-264,-248,-209,-710,-254,-320,-327,-317,-298,-334,-346,-306,-328,-341,-341,-410,-390,-1330,-950,-802,-404,-402,-402,-395,-387,-375,-375,-345,-8,-8,-8,-8,-8,-8,-8,-8,-8,-8,-8,-8,-8,-8,-8,-8,-8,-8,-8]} 1. e4 {[%emt 0:00:04]} c5 {[%emt 0:00:18]} 2. Nc3 {[%emt 0:00:40]} Nc6 {[%emt 0:00:47]} 3. Bb5 {[%emt 0:00:09]} e6 {[%emt 0:00:40]} 4. Bxc6 {[%emt 0:02:27]} bxc6 {[%emt 0:00:32]} 5. d3 {[%emt 0:00:08]} d5 {[%emt 0:00:09]} 6. Nf3 {[%emt 0:01:28] B23: Closed Sicilian: Lines without g3.} Nf6 {[%emt 0:00:40]} 7. O-O {[%emt 0:02:21]} c4 {[%emt 0:10:45] [#]} (7... Be7 $11) 8. e5 $146 {[%emt 0:12:15] White is better.} ({Predecessor:} 8. Bg5 cxd3 9. cxd3 Be7 10. Qa4 Bd7 11. e5 c5 12. Qa3 a5 13. exf6 gxf6 14. Bf4 {1-0 (21) Hnydiuk,A (2355)-Umansky,V (2380) Poland 1998}) 8... Nd7 {[%emt 0:01:44]} 9. dxc4 {[%emt 0:04:05]} Ba6 {[%emt 0:05:34]} 10. Bg5 {[%emt 0:01:21]} Qc7 {[%emt 0:17:00] [#]} 11. cxd5 $1 {[%emt 0:02:05]} cxd5 {[%emt 0:02:30]} 12. Re1 {[%emt 0:00:45][%cal Oc3d5]} Bb4 {[%emt 0:00:22] [#]} 13. Re3 {[%emt 0:11:08]} (13. Nxd5 $1 $16 {[%mdl 512]} exd5 14. c3) 13... O-O {[%emt 0:01:57]} 14. Nd4 {[%emt 0:01:31]} Rfc8 {[%emt 0:08:32]} 15. Qh5 {[%emt 0:08:14]} Nf8 $2 {[%emt 0:17:20] [#]} (15... Bc5 $1 $11 16. Rh3 Nf8) 16. Rd1 {[%emt 0:07:29]} (16. Bf6 $1 $18 {[%mdl 512]}) 16... Rab8 {[%emt 0:03:21] [#]} (16... Bxc3 $16 17. bxc3 (17. Rxc3 Qxe5 18. Re3 Qd6 $14) 17... Rab8) 17. Rg3 $2 {[%emt 0:09:58]} (17. Bf6 $1 $18 {[%cal Rf6g7][%mdl 512] Strongly threatening Bxg7!} Rb6 (17... Qd7 18. Bxg7) 18. Na4 (18. Bxg7 Kxg7 19. Na4 Rb7 $11)) 17... Qxe5 {[%emt 0:11:50]} 18. f4 $1 {[%emt 0:00:26]} ({Wrong is} 18. Rf3 $2 f6 19. Qh3 fxg5 $19) 18... Qc7 {[%emt 0:05:32] Hoping for ...Bc5.} 19. Bf6 $1 {[%emt 0:06:24]} Ng6 {[%emt 0:10:27] [#]} 20. f5 {[%emt 0:01:44] 0x0.000a7a3c28bedp-1022s more active pieces.} ({Not} 20. Be5 $2 Nxe5 21. Qxe5 Qxe5 22. fxe5 Bc5 $19) (20. Rh3 $1 $16 gxf6 21. Qxh7+ Kf8 22. f5) 20... gxf6 $11 {[%emt 0:00:00]} 21. Nxe6 {[%emt 0:08:47][%mdl 8192]} (21. Rh3 $1 $11 Nf8 22. Qg4+ Kh8 23. Rg3) 21... fxe6 $19 {[%emt 0:00:00]} 22. fxg6 {[%emt 0:00:58]} h6 {[%emt 0:00:00]} 23. g7 {[%emt 0:01:04]} (23. Qxh6 {was necessary.} Qg7 24. Qh5) 23... Bxc3 {[%emt 0:00:05]} 24. bxc3 {[%emt 0:02:33]} Qf4 {[%emt 0:00:46]} 25. Qh3 {[%emt 0:00:05]} f5 {[%emt 0:00:50] And now ...Be2 would win.} 26. Rg6 {[%emt 0:00:18]} Rb7 {[%emt 0:01:12][%cal Bb8b7,Bb7g7,Bg7g4,Bg4a4,Ba4a2][%mdl 32]} 27. Rxh6 {[%emt 0:01:20]} Rxg7 {[%emt 0:00:06]} 28. Rxe6 {[%emt 0:00:13]} Bb7 {[%emt 0:00:38][%cal Od5d4] ...d4! is the strong threat.} 29. Rh6 $2 {[%emt 0:03:55]} (29. Rde1 d4 30. Re8+ Rxe8 31. Rxe8+ Kf7 32. Qh5+ Kf6 33. Rf8+ Ke6 34. Qe8+ Re7 35. Qg6+ Kd7 36. Qxf5+ Qxf5 37. Rxf5 dxc3 38. Kf2) 29... Qg4 $2 {[%emt 0:00:49]} (29... d4 30. Rh8+ Kf7) 30. Rh8+ {[%emt 0:00:07]} Kf7 {[%emt 0:00:01]} 31. Qxg4 {[%emt 0:00:13]} Rxg4 {[%emt 0:00:35]} (31... fxg4 $2 {perishes.} 32. Rxc8 Bxc8 33. Rxd5 $19) 32. Rxc8 {[%emt 0:00:28]} Bxc8 {[%emt 0:00:03]} 33. Rxd5 {[%emt 0:00:10][%mdl 4096] Endgame KRB-KR} Ra4 {[%emt 0:00:30]} 34. Rc5 {[%emt 0:00:03]} Be6 {[%emt 0:00:10]} 35. h3 {[%emt 0:01:14]} Rxa2 {[%emt 0:00:13]} 36. g4 $2 {[%emt 0:00:05]} (36. Kf2) 36... fxg4 {[%emt 0:00:42]} 37. hxg4 {[%emt 0:00:02]} Bxg4 {[%emt 0:00:05]} 38. Kf2 {[%emt 0:00:07]} Bd1 {[%emt 0:01:18]} 39. Ke3 {[%emt 0:00:04]} Bxc2 {[%emt 0:00:03]} 40. Kd4 {[%emt 0:00:19]} a5 {[%emt 0:00:57]} 41. c4 {[%emt 0:00:18]} Ke6 $2 {[%emt 0:00:40]} (41... Ra3 $19 42. Rc7+ Ke6) 42. Re5+ $1 $11 {[%emt 0:02:10] The position is equal.} Kd6 {[%emt 0:00:01] Threatens to win with ...Bh7.} 43. Re2 $1 {[%emt 0:00:07]} a4 {[%emt 0:01:43]} 44. Kc3 {[%emt 0:00:27]} Bb3 {[%emt 0:00:28]} 45. Rxa2 {[%emt 0:00:08][%mdl 64] Remove Defender} Bxa2 {[%emt 0:00:02] KB-KP} 46. Kb2 {[%emt 0:00:07]} Bb3 {[%emt 0:00:02]} 47. c5+ {[%emt 0:00:12]} Kc6 {[%emt 0:00:05]} 48. Ka1 {[%emt 0:00:07]} Bd5 {[%emt 0:00:04]} 49. Kb2 {[%emt 0:00:12]} Kb5 {[%emt 0:00:02]} 50. c6 {[%emt 0:00:17]} Bxc6 {[%emt 0:00:04] And White is the lucky defender.  Weighted Error Value: White=0.59/Black=0.60} 1/2-1/2

[Event "VII GM Barcelona CC 2022"]
[Site "Barcelona"]
[Date "2022.05.11"]
[Round "2.3"]
[White "Roshka, Yevgeniy"]
[Black "Alvarez Albiol, Victor"]
[Result "1/2-1/2"]
[ECO "E11"]
[WhiteElo "2468"]
[BlackElo "2328"]
[Annotator "TA"]
[PlyCount "54"]
[EventDate "2022.05.10"]
[EventType "tourn"]
[EventCountry "ESP"]
[SourceTitle "playchess.com"]
[Source "ChessBase"]
[SourceQuality "1"]
[TimeControl "5400+30"]

{[%evp 11,54,38,50,37,39,41,45,47,45,-13,0,-15,-6,-205,-187,-187,-188,-318,-340,-341,-342,-322,-325,-324,-322,-373,-283,-442,-116,-102,-108,-108,-114,-120,-121,-107,-50,-78,-83,-76,-56,-53,-52,-63,-52]} 1. d4 {[%emt 0:04:26]} Nf6 {[%emt 0:00:08]} 2. c4 {[%emt 0:00:13]} e6 {[%emt 0:00:53]} 3. Nf3 {[%emt 0:02:25]} d5 {[%emt 0:00:38]} 4. Nbd2 {[%emt 0:08:20]} Bb4 {[%emt 0:07:56]} 5. Qa4+ {[%emt 0:02:51]} Nc6 {[%emt 0:00:16]} 6. a3 {[%emt 0:00:19]} Bxd2+ {[%emt 0:03:58]} 7. Bxd2 {[%emt 0:00:17] E11: Bogo-Indian.} O-O {[%emt 0:01:15]} 8. Rc1 {[%emt 0:05:03] [#]} Bd7 $146 {[%emt 0:04:22][%cal Oc6d4]} ({Predecessor:} 8... Ne4 9. Be3 Re8 10. Rd1 Ne7 11. g3 Bd7 12. Qc2 Bc6 13. Bg2 dxc4 14. Ne5 Nd6 15. Bxc6 Nxc6 16. Nxc4 Nxc4 17. Qxc4 {½-½ (31) Muhvic,D (2236)-Cucancic,S (2248) Kastav 1999}) 9. Qc2 {[%emt 0:01:51] White is slightly better.} Ne4 {[%emt 0:05:42]} 10. Bf4 {[%emt 0:00:59]} (10. e3 $14) 10... g5 $11 {[%emt 0:08:57][%cal Bg7g5,Bg5g4][%mdl 32]} 11. Be3 {[%emt 0:02:54]} f5 $1 {[%emt 0:11:39]} 12. Rd1 $2 {[%emt 0:13:06]} (12. g4 $11 {and White is okay.}) 12... f4 $19 {[%emt 0:02:33]} 13. Bc1 {[%emt 0:00:13]} g4 {[%emt 0:03:26]} 14. Nd2 {[%emt 0:05:12]} (14. Ne5 {might work better.} Nxe5 15. dxe5) 14... Nxd4 {[%emt 0:09:58][%cal Rd4c2] [#] Pair of Knights!} 15. Qd3 {[%emt 0:00:15]} c5 {[%emt 0:05:32]} 16. Nxe4 {[%emt 0:06:21]} dxe4 {[%emt 0:00:15]} 17. Qxe4 {[%emt 0:00:32]} Bc6 {[%emt 0:01:29]} 18. Qd3 {[%emt 0:00:42]} Ba4 {[%emt 0:03:11]} 19. Rd2 {[%emt 0:00:23]} (19. e3 $142 Bc2 20. Qe2 Nxe2 21. Rxd8 Raxd8 22. Bxe2) 19... Nc2+ $2 {[%emt 0:08:22]} 20. Rxc2 $17 {[%emt 0:00:02] [#] Threatens to win with b3.} Qxd3 {[%emt 0:00:07]} 21. exd3 {[%emt 0:00:02]} Bxc2 {[%emt 0:00:07]} 22. h3 {[%emt 0:02:43]} g3 {[%emt 0:03:29]} 23. fxg3 {[%emt 0:00:34]} fxg3 {[%emt 0:00:23]} ({Black should try} 23... Rad8 $17 24. Bxf4 Bxd3 25. Bxd3 Rxd3) 24. Be3 {[%emt 0:00:06]} b6 {[%emt 0:01:02]} 25. Be2 {[%emt 0:00:41]} Rad8 {[%emt 0:01:34]} 26. Kd2 {[%emt 0:00:17]} Ba4 {[%emt 0:00:36]} 27. h4 {[%emt 0:00:53]} Rf7 $1 {[%emt 0:03:55] Weighted Error Value: White=0.46/Black=0.42} 1/2-1/2

[Event "VII GM Barcelona CC 2022"]
[Site "Barcelona"]
[Date "2022.05.11"]
[Round "2.4"]
[White "Del Prado Rodriguez, Xulio"]
[Black "Gines Esteo, Pedro Antonio"]
[Result "0-1"]
[ECO "C01"]
[WhiteElo "2326"]
[BlackElo "2434"]
[Annotator "TA"]
[PlyCount "66"]
[EventDate "2022.05.10"]
[EventType "tourn"]
[EventCountry "ESP"]
[SourceTitle "playchess.com"]
[Source "ChessBase"]
[SourceQuality "1"]
[TimeControl "5400+30"]

{[%evp 9,66,27,31,7,14,11,28,8,15,0,0,0,0,-1,-1,-34,-29,-59,-39,-41,-41,-34,-42,-82,-81,-68,-75,-69,-72,-94,-73,-82,-87,-87,-87,-97,-94,-88,-80,-147,-89,-91,-87,-92,-85,-68,-83,-185,-185,-181,-184,-184,-184,-275,-252,-1129,-1000,-760,-712]} 1. d4 {[%emt 0:00:13]} e6 {[%emt 0:04:12]} 2. c4 {[%emt 0:00:52]} b6 {[%emt 0:00:17]} 3. e4 {[%emt 0:06:19][%cal Be2e4,Be4d5][%mdl 32]} Bb4+ {[%emt 0:00:08]} 4. Bd2 {[%emt 0:06:46]} Bxd2+ {[%emt 0:00:13]} 5. Qxd2 {[%emt 0:00:19]} d5 {[%emt 0:00:07]} 6. cxd5 {[%emt 0:13:16] C01: French: Exchange Variation.} exd5 {[%emt 0:00:08]} 7. exd5 {[%emt 0:06:23]} Ne7 {[%emt 0:00:36]} 8. Bb5+ {[%emt 0:02:06] White has an edge.} Nd7 {[%emt 0:17:40][%cal Bb8d7,Bd7f6,Bf6d5,Bd5f4][%mdl 32]} 9. Nf3 {[%emt 0:21:12]} O-O {[%emt 0:01:31]} 10. O-O {[%emt 0:01:59]} Bb7 {[%emt 0:09:34]} 11. d6 {[%emt 0:09:18]} cxd6 {[%emt 0:00:23]} 12. Qf4 {[%emt 0:00:52]} Nf6 {[%emt 0:08:58]} 13. Nc3 {[%emt 0:00:44] [#]} Ned5 $146 {[%emt 0:08:05]} (13... Ng6 $5 {[%cal Rg6f4]} 14. Qe3 a6 $15) ({Predecessor:} 13... Ng6 14. Qg3 Nh5 15. Qg5 Bxf3 16. Qxd8 Rfxd8 17. gxf3 Nh4 18. Kh1 Nf4 19. Ne2 Nxe2 20. Bxe2 {0-1 (71) Barrish,D (2263)-Kovacevic,B (2505) Schwarzach 2018}) 14. Nxd5 {[%emt 0:06:10]} Nxd5 {[%emt 0:00:01]} 15. Qg4 {[%emt 0:10:03]} Qf6 {[%emt 0:12:55]} 16. Rac1 {[%emt 0:01:17]} Nf4 $1 {[%emt 0:00:58]} 17. Rc7 {[%emt 0:03:13]} Bd5 {[%emt 0:06:32]} 18. Bc6 {[%emt 0:02:14]} Be6 {[%emt 0:03:06]} 19. Qg5 {[%emt 0:01:29]} Rac8 {[%emt 0:00:20]} 20. Qxf6 {[%emt 0:01:09]} gxf6 {[%emt 0:00:04]} 21. Rxc8 {[%emt 0:00:05]} Rxc8 {[%emt 0:00:05]} 22. Be4 {[%emt 0:01:45]} Bxa2 {[%emt 0:02:00]} 23. g3 {[%emt 0:00:36]} Bd5 {[%emt 0:02:11]} 24. Nd2 {[%emt 0:00:59] [#]} ({White should try} 24. Bxd5 Nxd5 25. Nh4) 24... Ne2+ {[%emt 0:06:52]} (24... f5 $142 $1 25. Bf3 Bxf3 26. Nxf3 Nd3) 25. Kg2 $17 {[%emt 0:00:02]} Rc2 $1 {[%emt 0:00:24]} 26. Rd1 {[%emt 0:00:56] [#]} Rxb2 $1 {[%emt 0:00:24] Hoping for ...Nc3. Black is more active.} 27. Bxd5 {[%emt 0:00:34] Black must now prevent Ne4.} Nc3 {[%emt 0:00:07]} 28. Bxf7+ {[%emt 0:02:05]} Kxf7 $19 {[%emt 0:00:08]} 29. Rc1 {[%emt 0:00:04]} Rxd2 {[%emt 0:03:45]} 30. Rxc3 $17 {[%emt 0:00:02] [#] KR-KR} Re2 $1 {[%emt 0:00:16]} ({Stronger than} 30... Rxd4 31. Rc7+ Ke6 32. Rxa7 $15) 31. Rc6 {[%emt 0:00:52]} (31. Kf1 $142 Re7 32. Rb3) 31... b5 $19 {[%emt 0:01:39][%cal Bb6b5,Bb5b4][%mdl 32]} 32. Rxd6 $2 {[%emt 0:00:30]} (32. Kf1 Re7 33. Rc8) 32... b4 {[%emt 0:01:02] aiming for ...b3.} 33. Rd8 {[%emt 0:01:27]} Re8 {[%emt 0:00:50] Weighted Error Value: White=0.48/Black=0.03 (flawless)} 0-1

[Event "VII GM Barcelona CC 2022"]
[Site "Barcelona"]
[Date "2022.05.11"]
[Round "2.5"]
[White "Munoz, Miguel"]
[Black "Rodriguez Lopez, Rafael"]
[Result "1/2-1/2"]
[ECO "B51"]
[WhiteElo "2421"]
[BlackElo "2176"]
[Annotator "TA"]
[PlyCount "65"]
[EventDate "2022.05.10"]
[EventType "tourn"]
[EventCountry "ESP"]
[SourceTitle "playchess.com"]
[Source "ChessBase"]
[SourceQuality "1"]
[TimeControl "5400+30"]

{[%evp 11,65,0,4,4,22,22,35,27,27,18,10,12,24,11,7,-4,-13,-13,-11,-15,0,0,0,-27,-30,-28,0,-7,0,0,0,0,0,-29,-39,-89,-82,-81,-79,-83,-72,-79,-81,-99,-102,-97,-97,-95,-47,-47,0,0,0,-35,0,-7]} 1. e4 {[%emt 0:17:39]} c5 {[%emt 0:00:44]} 2. Nf3 {[%emt 0:00:10]} d6 {[%emt 0:00:08]} 3. Bb5+ {[%emt 0:00:05]} Nd7 {[%emt 0:00:10]} 4. d4 {[%emt 0:00:10]} cxd4 {[%emt 0:00:07]} 5. Qxd4 {[%emt 0:00:05]} a6 {[%emt 0:00:09]} 6. Bxd7+ {[%emt 0:00:05]} Bxd7 {[%emt 0:00:03]} 7. c4 {[%emt 0:00:12] 7.Nc3 is the fancy move. B51: Sicilian: Moscow Variation (3 Bb5+) without 3...Bd7.} e5 {[%emt 0:00:14]} 8. Qd3 {[%emt 0:00:07]} Rc8 {[%emt 0:00:04]} 9. Nc3 {[%emt 0:00:32][%cal Bb1c3,Bc3d5,Bd5e3,Be3c4][%mdl 32] Prevents b5. White is slightly better. 9.0-0 is vanishing.} Qc7 {[%emt 0:00:17]} 10. b3 {[%emt 0:00:06]} b5 {[%emt 0:00:25][%cal Rb5c4]} 11. Nd5 {[%emt 0:00:22]} Qc6 {[%emt 0:02:08][%cal Rb5c4]} 12. Nd2 {[%emt 0:04:55]} Nf6 {[%emt 0:01:58]} 13. Ne3 {[%emt 0:02:48] [#]} Be7 $146 {[%emt 0:03:09]} ({Predecessor:} 13... bxc4 14. bxc4 Be7 15. O-O O-O 16. Ba3 Rfd8 17. Rfc1 Qa4 18. Qb3 {½-½ (18) Karavade,E (2399)-Ioannidis,E (2339) Veliko Gradiste 2018}) 14. O-O {[%emt 0:01:09]} O-O {[%emt 0:00:17]} 15. a4 {[%emt 0:00:44]} bxc4 {[%emt 0:01:38]} 16. Nexc4 {[%emt 0:00:07]} Be6 {[%emt 0:00:18]} 17. Re1 {[%emt 0:02:39]} (17. Ba3 $5 {[%cal Rc4e5]}) 17... Rfd8 {[%emt 0:03:53]} 18. Ba3 {[%emt 0:00:56]} Qb7 {[%emt 0:01:07]} 19. Rac1 {[%emt 0:04:37]} Bf8 {[%emt 0:06:56][%cal Be7f8,Bf8a3,Ba3b4][%mdl 32]} 20. Na5 {[%emt 0:02:51]} (20. Nxd6 $2 Bxd6 21. Rxc8 (21. Bxd6 $2 Rc6 $19) 21... Qxc8 $19) 20... Qb6 {[%emt 0:03:01]} 21. Ndc4 {[%emt 0:06:42]} Qa7 {[%emt 0:00:20]} 22. Rcd1 {[%emt 0:02:36]} Qc7 {[%emt 0:03:48] And now ...d5 would win.} (22... Bxc4 23. Nxc4 Qb7 24. a5 $11 (24. Nxd6 $2 Bxd6 25. Bxd6 Rc6 $19)) 23. Qe3 {[%emt 0:04:30]} (23. Qg3 $15) 23... d5 $17 {[%emt 0:28:20]} 24. exd5 {[%emt 0:02:50][%cal Be4d5,Bd5e6,Be6f7][%mdl 32] Threatens to win with d6.} Bxa3 {[%emt 0:00:38]} 25. dxe6 {[%emt 0:03:20] [#]} Bb4 $1 {[%emt 0:00:28]} 26. exf7+ {[%emt 0:00:10] [#]} (26. Nxe5 $2 Bxe1 27. exf7+ Kf8 28. Rxe1 (28. Rxd8+ $2 Rxd8 29. Nac4 Bc3 $19) 28... Qxa5 $19) (26. Qxe5 $2 Qxe5 27. Nxe5 Bxa5 28. Nxf7 (28. exf7+ $2 Kf8 $19) 28... Rxd1 29. Rxd1 Rc6 $19) 26... Kf8 $1 {[%emt 0:04:52]} 27. Qb6 {[%emt 0:05:06]} ({Don't blunder} 27. Nxe5 $2 Bxe1 28. Rxe1 (28. Rxd8+ $2 Rxd8 29. Nac4 Bc3 $19) 28... Qxa5 $19) (27. Rxd8+ $2 Rxd8 28. Rf1 (28. Nxe5 $2 Bxe1 29. Nac4 Bc3 $19) 28... Bxa5 29. Nxe5 Qc3 $19) 27... Qxb6 {[%emt 0:01:53]} 28. Nxb6 {[%emt 0:00:11] Pair of Knights!} Bxe1 {[%emt 0:01:37]} 29. Rxe1 {[%emt 0:00:11]} Rc2 {[%emt 0:00:19]} ({Black should try} 29... Rc7 $17 30. Nac4 Re7) 30. Nbc4 $1 $15 {[%emt 0:01:44]} Re2 {[%emt 0:00:33]} 31. Rc1 $11 {[%emt 0:01:38]} Rc2 {[%emt 0:04:16][%cal Rc2c1]} 32. Re1 {[%emt 0:00:25]} Re2 {[%emt 0:00:29][%cal Re2e1][%mdl 1024] Black has compensation.} 33. Rc1 {[%emt 0:37:18] Weighted Error Value: White=0.06 (flawless) /Black=0.07 (flawless)} 1/2-1/2

[Event "VII GM Barcelona CC 2022"]
[Site "Barcelona"]
[Date "2022.05.11"]
[Round "3.1"]
[White "Rodriguez Lopez, Rafael"]
[Black "Pajeken, Jakob Leon"]
[Result "0-1"]
[ECO "B92"]
[WhiteElo "2176"]
[BlackElo "2398"]
[Annotator "TA"]
[PlyCount "144"]
[EventDate "2022.05.10"]
[EventType "tourn"]
[EventCountry "ESP"]
[SourceTitle "playchess.com"]
[Source "ChessBase"]
[SourceQuality "1"]
[TimeControl "5400+30"]

{[%evp 14,144,0,0,0,0,0,0,0,0,0,0,14,0,1,-5,-2,-10,-16,-19,-16,-16,-8,-30,-23,-23,-22,-27,-27,-25,-18,-20,-15,-14,-14,-10,-3,-10,-8,-24,-27,-31,-27,-29,0,-18,0,-21,-29,-29,-18,-55,-51,-55,-47,-62,-56,-47,-48,-81,-35,-44,-1,-1,-1,-5,-3,-10,-3,-3,-10,-10,-17,-10,0,0,0,0,0,0,0,0,0,0,0,0,0,0,0,-1105,0,0,0,0,0,0,0,0,0,0,0,0,0,0,0,0,0,0,0,0,0,0,0,0,0,0,0,0,0,0,0,0,0,0,0,0,0,0,0,0,0,-27999,-27999]} 1. e4 {[%emt 0:00:07]} c5 {[%emt 0:00:04]} 2. Nf3 {[%emt 0:00:10]} d6 {[%emt 0:00:02]} 3. d4 {[%emt 0:00:32]} cxd4 {[%emt 0:00:05]} 4. Nxd4 {[%emt 0:00:04]} Nf6 {[%emt 0:00:04]} 5. Nc3 {[%emt 0:00:05]} a6 {[%emt 0:00:03]} 6. Be2 {[%emt 0:00:22]} e5 {[%emt 0:00:04]} 7. Nf3 {[%emt 0:00:17]} Be7 {[%emt 0:00:05]} 8. Bg5 {[%emt 0:00:12]} Be6 {[%emt 0:00:08] B92: Sicilian Najdorf: 6 Be2.} 9. Bxf6 {[%emt 0:00:15]} Bxf6 {[%emt 0:00:19]} 10. O-O {[%emt 0:00:22] 10.0-0 scores better than 10.Nd5.} Be7 {[%emt 0:01:15] The position is equal.} 11. Nd5 {[%emt 0:00:18]} Nd7 {[%emt 0:00:28]} 12. Bc4 {[%emt 0:00:31]} b5 {[%emt 0:02:30]} 13. Bb3 {[%emt 0:00:20]} Nc5 {[%emt 0:01:26] [#]} 14. Nxe7 $146 {[%emt 0:02:08]} ({Predecessor:} 14. Re1 O-O 15. Qd2 Rc8 16. c3 a5 17. Rad1 h6 18. h3 Re8 19. Bc2 Bxd5 20. Qxd5 {½-½ (42) Feco,J (2458)-Yakovlev,O (2397) ICCF email 2019}) 14... Qxe7 {[%emt 0:05:16]} 15. Bxe6 {[%emt 0:03:15]} Qxe6 {[%emt 0:01:14]} 16. Qe2 {[%emt 0:00:36]} O-O {[%emt 0:00:09]} 17. Rfd1 {[%emt 0:00:29]} Rfd8 {[%emt 0:00:57]} 18. b3 {[%emt 0:02:02]} Qg4 {[%emt 0:02:21]} 19. Re1 {[%emt 0:00:19]} Ne6 {[%emt 0:01:39]} 20. Nd4 {[%emt 0:06:17]} Qxe2 {[%emt 0:01:31]} 21. Nxe2 {[%emt 0:00:04]} Rac8 {[%emt 0:00:13]} 22. c3 {[%emt 0:01:55]} d5 {[%emt 0:00:40]} 23. exd5 {[%emt 0:00:31]} Rxd5 {[%emt 0:00:05]} 24. Red1 {[%emt 0:00:50]} Rcd8 {[%emt 0:00:20]} 25. Rxd5 {[%emt 0:00:07]} Rxd5 $11 {[%emt 0:00:04][%mdl 4096] Endgame KRN-KRN} 26. Kf1 {[%emt 0:02:02]} Nc5 {[%emt 0:05:53]} 27. Ke1 {[%emt 0:06:37]} Nd3+ {[%emt 0:00:26]} 28. Kf1 {[%emt 0:00:06]} Nc5 {[%emt 0:00:12]} 29. Ke1 $1 {[%emt 0:00:06]} Nd3+ {[%emt 0:00:03]} 30. Kf1 {[%emt 0:00:31]} f5 {[%emt 0:00:10]} 31. Rd1 {[%emt 0:00:33]} Kf7 {[%emt 0:00:41]} 32. Nc1 {[%emt 0:00:30]} Nf4 {[%emt 0:00:58][%cal Rd5d1] [#]} 33. Rxd5 {[%emt 0:00:10]} Nxd5 $15 {[%emt 0:00:04] KN-KN} 34. Ne2 $1 {[%emt 0:00:13]} Ke6 {[%emt 0:00:35]} 35. Ke1 {[%emt 0:03:16]} g5 {[%emt 0:02:50]} 36. g3 {[%emt 0:01:46]} Nf6 {[%emt 0:02:10]} ({Better is} 36... g4 $17) 37. f3 $1 {[%emt 0:05:35]} f4 {[%emt 0:07:29]} 38. gxf4 {[%emt 0:00:20]} gxf4 {[%emt 0:00:43]} 39. Kd2 {[%emt 0:00:37]} Nd7 {[%emt 0:00:59]} 40. Ng1 {[%emt 0:09:00]} Kf5 {[%emt 0:00:19]} 41. Nh3 {[%emt 0:04:37]} Nc5 {[%emt 0:02:56]} 42. b4 {[%emt 0:04:40]} Ne6 {[%emt 0:00:43]} 43. Kd3 $1 {[%emt 0:11:01]} h5 {[%emt 0:00:28][%cal Oe5e4]} 44. c4 $1 {[%emt 0:06:03]} bxc4+ {[%emt 0:00:06]} 45. Kxc4 {[%emt 0:00:21]} e4 {[%emt 0:02:57]} 46. fxe4+ {[%emt 0:00:33]} Kxe4 {[%emt 0:00:11] White must now prevent ...f3.} 47. a4 {[%emt 0:01:13]} f3 {[%emt 0:00:39] Hoping for ...Ke3.} 48. b5 {[%emt 0:00:22]} axb5+ {[%emt 0:00:08]} 49. axb5 {[%emt 0:00:05]} Nd8 {[%emt 0:06:17]} 50. Kc5 {[%emt 0:09:34]} Ke3 {[%emt 0:00:38]} 51. Kb6 $2 {[%emt 0:00:31][%mdl 8192] [#]} (51. b6 $11) 51... Ne6 $2 {[%emt 0:00:25]} (51... h4 $1 $19 52. Ka5 f2 53. Nxf2 Kxf2) 52. Ka5 $11 {[%emt 0:00:53]} Ng5 {[%emt 0:16:16]} 53. b6 {[%emt 0:02:11] aiming for b7.} Nxh3 $4 {[%emt 0:00:11][%mdl 8192] KN-KPP} (53... Ne6 $11) 54. b7 {[%emt 0:00:03]} f2 {[%emt 0:00:05]} 55. b8=Q {[%emt 0:00:09]} f1=Q {[%emt 0:01:25]} 56. Qe5+ {[%emt 0:00:17]} Kd2 {[%emt 0:00:10]} 57. Qxh5 {[%emt 0:00:15]} Nf4 $2 {[%emt 0:00:14][%mdl 8192]} (57... Qa1+ $11 58. Kb5 Qb2+ 59. Kc6 Qf6+ 60. Kb7 Qe7+ 61. Kb6 Qd8+ 62. Ka6 Qc8+ 63. Kb6 Qd8+ 64. Ka6 Qd6+ 65. Kb7 Qe7+ 66. Kc8 Qe6+ 67. Kb7 Qe4+ 68. Kb8 Qf4+ 69. Kb7 Qe4+ 70. Kb8 Qb4+ 71. Kc7 Nf4) 58. Qb5 $2 {[%emt 0:01:19][%mdl 8192]} (58. Qe5 $11) 58... Qa1+ {[%emt 0:00:09]} 59. Kb6 $2 {[%emt 0:00:50][%mdl 8192]} (59. Qa4 $11 Qe5+ 60. Ka6) 59... Qd4+ {[%emt 0:00:16]} 60. Qc5 {[%emt 0:00:42]} Qd8+ {[%emt 0:00:07][%mdl 8192]} (60... Nd5+ $11 61. Kc6 Qxc5+ 62. Kxc5 Nf6) 61. Kb5 $2 {[%emt 0:01:40][%mdl 8192]} (61. Ka7 $11) 61... Nd3 {[%emt 0:00:09]} 62. Qb6 $2 {[%emt 0:03:16][%mdl 8192]} (62. Qc4 $11) 62... Qd5+ {[%emt 0:00:25]} 63. Ka6 {[%emt 0:01:18]} Nc5+ {[%emt 0:00:11]} 64. Ka5 {[%emt 0:01:03]} Nd7+ $2 {[%emt 0:02:21][%mdl 8192]} (64... Nd3+ $11 65. Qb5 Qd4) 65. Qb5 {[%emt 0:00:06]} Qa8+ $2 {[%emt 0:00:40][%mdl 8192]} (65... Qa2+ $11 66. Kb4 Qb1+ 67. Ka4 Qa2+ 68. Kb4 Qb2+ 69. Ka4 Qa2+ 70. Kb4) 66. Kb4 {[%emt 0:00:30]} Qe4+ $2 {[%emt 0:02:18][%mdl 8192]} (66... Qf8+ $11 67. Kb3 Qf7+ 68. Ka3 Qf3+ 69. Ka2 Qa8+ 70. Kb3 Qg8+ 71. Ka3 Qa8+ 72. Kb4 Qe4+ 73. Ka3 Qf3+ 74. Ka2 Qf7+ 75. Ka3 Qf3+) 67. Qc4 {[%emt 0:00:57]} Qe7+ $2 {[%emt 0:01:05][%mdl 8192]} (67... Qe5 $11) 68. Kb5 $2 {[%emt 0:00:51][%mdl 8192]} (68. Kb3 $11) 68... Qg5+ $2 {[%emt 0:00:34][%mdl 8192]} (68... Qe5+ $11 69. Kc6 Nf6) 69. Kb4 {[%emt 0:00:24]} Qe7+ $2 {[%emt 0:00:09][%mdl 8192]} (69... Qe5 $11) 70. Kb5 $2 {[%emt 0:00:11][%mdl 8192]} (70. Kb3 $11) 70... Qe5+ {[%emt 0:00:13]} 71. Ka6 $2 {[%emt 0:03:55][%mdl 8192]} (71. Kc6 $11) 71... Qd6+ {[%emt 0:00:22]} 72. Kb7 $2 {[%emt 0:01:57][%mdl 8192]} (72. Kb5 $11) 72... Qb8+ {[%emt 0:00:04] Weighted Error Value: White=0.13 (very precise) /Black=0.22 (precise)} 0-1